Cogmind - Beta 10.1 @@@ ROGUE MODE // 2020.09.23 @ 21:20:36 // Halloween2019/Abominations Player: HOTSOUP Result: Destroyed by G-34 Mercenary with Small Laser Performance ------------- Evolutions (0) 0 Regions Visited (1) 200 Robots Destroyed (12) 60 Value Destroyed (397) 397 Prototype IDs (0) 0 Alien Tech Used (0) 0 Bonus (0) 0 TOTAL SCORE: 657 Bonus ------- None Cogmind --------- Core Integrity 0/250 Matter 300/300 Energy 125/125 System Corruption 1% Temperature Cool (12) Movement Walking (180) Ox2 Location -10/Materials Parts ------- > --- POWER (1) -------- Light Ion Engine > --- PROPULSION (2) --- Aluminum Leg > --- UTILITY (2) ------ Large Storage Unit > --- WEAPON (2) ------- Light Cannon Grenade Launcher > --- INVENTORY (10) --- Ion Engine Light Ion Engine Light Cannon Peak State ------------ > --- POWER ------------ Ion Engine > --- PROPULSION ------- Aluminum Leg Aluminum Leg > --- UTILITY ---------- Small Storage Unit Large Storage Unit > --- WEAPON ----------- Light Assault Rifle Light Assault Rifle > --- INVENTORY -------- Light Ion Engine Grenade Launcher [Rating: 7] Favorites ----------- Power Ion Engine Engine Ion Engine Propulsion Aluminum Leg Leg Aluminum Leg Utility Large Storage Unit Storage Large Storage Unit Weapon Light Assault Rifle Ballistic Gun Light Assault Rifle Ballistic Cannon Light Cannon Launcher Grenade Launcher Build | -11 -10 ------- Run | Scr Mat Slots Evolved . | . . Power . | . . Propulsion . | . . Utility . | . . Weapon . | . . Parts Attached 10 | 6 4 Power 2 | 1 1 Engine 2 | 1 1 Core . | . . Reactor . | . . Propulsion 2 | 2 . Treads . | . . Leg 2 | 2 . Wheel . | . . Hover . | . . Flight . | . . Utility 2 | 1 1 Device . | . . Storage 2 | 1 1 Processor . | . . Hackware . | . . Protection . | . . Artifact . | . . Weapon 4 | 2 2 Energy Gun . | . . Energy Cannon . | . . Ballistic Gun 2 | 2 . Ballistic Cannon 1 | . 1 Launcher 1 | . 1 Special Weapon . | . . Impact Weapon . | . . Slashing Weapon . | . . Piercing Weapon . | . . Special Melee Weapon . | . . Unidentified Prototypes . | . . Parts Lost 4 | . 4 Power 1 | . 1 Propulsion 1 | . 1 Utility . | . . Weapon 2 | . 2 Highest Loss Streak 4 | . 4 Average Slot Usage (%) 67 | . 67 Engine 8 | . 8 Leg 19 | . 19 Storage 14 | . 14 Ballistic Gun 9 | . 9 Ballistic Cannon 6 | . 6 Launcher 8 | . 8 Naked Turns . | . . Heaviest Build 27 | 11 27 Greatest Support 20 | 20 20 Greatest Overweight (x) 2 | . 2 Average Overweight (x) . | . 1 Largest Inventory Capacity 12 | 6 12 Average Capacity 8 | 4 9 Most Carried 3 | 2 3 Average Carried 2 | 1 2 Final Capacity 10 | 6 10 Final Carried 3 | 1 3 Class Distribution -------------------- 100% | Mutant Dominant Class ---------------- Mutant | -10/Materials Resources | -11 -10 ----------- Run | Scr Mat Matter Collected 402 | 292 110 Remotely . | . . Salvage Created 557 | 149 408 Parts 27 | 8 19 Haulers Intercepted 1 | . 1 Recyclers Shooed 1 | 1 . Parts Field Recycled . | . . Retrieved Matter . | . . Parts Self-Destructed . | . . Prevented . | . . Kills | -11 -10 ------- Run | Scr Mat Combat Hostiles Destroyed 7 | . 7 Guns 5 | . 5 AOE 1 | . 1 Classes Destroyed 5 | 2 3 Tunneler 3 | 3 . Hauler 1 | . 1 Recycler 1 | 1 . Grunt 2 | . 2 Abomination 5 | . 5 Best Kill Streak 4 | 4 3 Combat Bots Only 3 | . 3 Max Kills in Single Turn 1 | 1 1 Gunslinging . | . . Exploded 1 | . 1 Melee . | . . Uniques/NPCs Destroyed . | . . Combat | -11 -10 -------- Run | Scr Mat Damage Taken 741 | . 741 Core 256 | . 256 Absorbed by Shields . | . . Core Remaining (%) 100 | 100 . Volleys Fired 46 | 16 30 Largest 2 | 2 2 Hottest 40 | 40 40 Shots Fired 81 | 32 49 Gun 77 | 32 45 Cannon . | . . Launcher 4 | . 4 Special . | . . Kinetic 77 | 32 45 Thermal . | . . Explosive 4 | . 4 Electromagnetic . | . . Robot Hit Streak 13 | 4 13 Robot Miss Streak 5 | 5 3 Penetration Max . | . . Secondary Targets 1 | . 1 Max Gunslinging Chain 1 | . 1 Shots Hit Robots 53 | 18 35 Core Hits 26 | 9 17 Critical Hits 2 | 1 1 Critical Kills 2 | 1 1 Critical Parts Destroyed . | . . Melee Attacks . | . . Impact . | . . Slashing . | . . Piercing . | . . Sneak Attacks . | . . Combat Hostiles . | . . Follow-up Attacks . | . . Damage Inflicted 634 | 162 472 Guns 489 | 162 327 Cannons . | . . Explosions 145 | . 145 Melee . | . . Ramming . | . . Kinetic 489 | 162 327 Thermal . | . . Explosive 145 | . 145 Electromagnetic . | . . Impact . | . . Slashing . | . . Piercing . | . . Highest Corruption 1 | . 1 Average Corruption 1 | . 1 Corruption Purged . | . . Effects 1 | . 1 Energy Discharges 1 | . 1 Overload Shots . | . . Overflow Damage 10 | . 10 Projectiles . | . . Explosions 10 | . 10 Melee . | . . Knockbacks . | . . Impact . | . . Kinetic . | . . Secondary . | . . Self-Inflicted Damage . | . . Shots . | . . Rammed . | . . Targets Rammed . | . . Kicked . | . . Crushed . | . . Highest Temperature 12 | . 12 Average Temperature 6 | . 6 Received Heat Transfer 228 | . 228 Siege Activations . | . . Robots Corrupted . | . . Combat Hostiles . | . . Parts Fried . | . . Impact Corruptions . | . . Robots Melted . | . . Combat Hostiles . | . . Parts Melted . | . . Heat Transferred . | . . Parts Sabotaged . | . . Parts Stolen . | . . Parts Stripped . | . . Power Chain Reactions . | . . Missiles Intercepted . | . . Alert | -11 -10 ------- Run | Scr Mat Peak Influence 73 | 20 73 Initial 13 | . 13 Average 31 | 9 39 Maximum Alert Level . | . . Low Security (%) 100 | 100 100 Level 1 . | . . Level 2 . | . . Level 3 . | . . Level 4 . | . . Level 5 . | . . High Security . | . . Max Security . | . . Squads Dispatched 5 | . 5 Investigation 4 | . 4 Extermination . | . . Reinforcement 1 | . 1 Assault . | . . Garrison . | . . Intercept . | . . Construction Impeded . | . . Haulers Reinforced . | . . Stealth | -11 -10 --------- Run | Scr Mat Distress Signals 1 | . 1 Communications Jammed . | . . Distress Signals . | . . Times Spotted 19 | . 19 Peak Tracking Total 5 | . 5 Tactical Retreats 4 | . 4 Traps | -11 -10 ------- Run | Scr Mat Traps Triggered . | . . Indirectly . | . . Trap Hack Attempts . | . . Triggered . | . . Disarmed . | . . Reprogrammed . | . . Reused . | . . Traps Extracted . | . . Installed . | . . Triggered . | . . Machines | -11 -10 ---------- Run | Scr Mat Machines Disabled . | . . Max in Single Turn . | . . Machines Sabotaged . | . . Garrisons Compromised . | . . Overloaded Fab Kills . | . . Fab Network Shutdowns . | . . Hacking | -11 -10 --------- Run | Scr Mat Machines Accessed 2 | . 2 Terminals 2 | . 2 Fabricators . | . . Repair Stations . | . . Recycling Units . | . . Scanalyzers . | . . Garrison Access . | . . Total Hacks 5 | . 5 Successful 1 | . 1 Failed 4 | . 4 Catastrophic 3 | . 3 Database Lockouts . | . . Manual 2 | . 2 Terminals 5 | . 5 Fabricators . | . . Repair Stations . | . . Recycling Units . | . . Scanalyzers . | . . Garrison Access . | . . Terminal Hacks 1 | . 1 Investigation Status 1 | . 1 Fabricator Hacks . | . . Repair Station Hacks . | . . Recycling Unit Hacks . | . . Scanalyzer . | . . Garrison Access Hacks . | . . Unauthorized Hacks . | . . Terminals . | . . Fabricators . | . . Repair Stations . | . . Recycling Units . | . . Scanalyzers . | . . Garrison Access . | . . Data Cores Recovered . | . . Used . | . . Hacking Detections 2 | . 2 Full Trace Events 2 | . 2 Feedback Events . | . . Feedback Blocked . | . . Robot Schematics Acquired . | . . Robots Built . | . . Matter . | . . Time . | . . Total Robot Build Rating . | . . Part Schematics Acquired . | . . Parts Built . | . . Matter . | . . Time . | . . Total Part Build Rating . | . . Parts Repaired . | . . Time . | . . Parts Recycled . | . . Recycled Matter . | . . Retrieved Matter . | . . Retrieved Components . | . . Parts Scanalyzed . | . . Part Schematics Acquired . | . . Parts Damaged . | . . Bothacking | -11 -10 ------------ Run | Scr Mat Used RIF Installer . | . . Robots Hacked . | . . Non-combat . | . . Combat . | . . Robot Hacks Applied . | . . Relay Couplers Released . | . . Robots Rewired . | . . Allies Hacked . | . . Hacks Repelled . | . . Allies | -11 -10 -------- Run | Scr Mat Total Allies . | . . Largest Group . | . . Highest-Rated Group . | . . Highest-Rated Ally . | . . Total Orders . | . . Ally Attacks . | . . Total Damage . | . . Kills . | . . Allies Corrupted . | . . Allies Melted . | . . Intel | -11 -10 ------- Run | Scr Mat Robot Analysis Total . | . . Derelict Logs Recovered . | . . Drone Launches . | . . Drone Recoveries . | . . Exploration | -11 -10 ------------- Run | Scr Mat Turns Passed 639 | 169 470 Spaces Moved 337 | 104 233 Core 11 | 11 . Treads . | . . Legs 326 | 93 233 Wheels . | . . Hover . | . . Flight . | . . Fastest Speed 50 | 50 120 Average Speed 147 | 112 162 Slowest Speed 180 | 120 180 Overloaded Moves . | . . Propulsion Burnouts . | . . Robots Hopped . | . . Cave-ins Triggered . | . . Exploration Rate (%) 21 | 4 39 Regions Visited 1 Branch Regions . Pre-discovered Areas . | . . Known Exits Taken . | . . Unknown Exits Taken 1 | 1 . Scrap Searched . | . . Spaces Dug . | . . Terrain Destroyed 22 | . 22 Melee . | . . Projectile . | . . AOE 22 | . 22 Terrain Rammed . | . . Walls Destroyed . | . . Machines Disabled . | . . Actions | -11 -10 --------- Run | Scr Mat Total 412 | 128 284 Wait 14 | 1 13 Move 336 | 103 233 Hop . | . . Pick Up 5 | 2 3 Fast Attach 8 | 5 3 Attach 2 | 1 1 Detach . | . . Swap . | . . Drop 1 | . 1 Fire 46 | 16 30 Melee . | . . Ram . | . . Kick . | . . Crush . | . . Escape Stasis . | . . Rewire . | . . Trap . | . . Miscellaneous . | . . Route ------- -11/Scrapyard -10/Materials History --------- Turn | Location | Event 8 | -11/Scrapyard | Discovered new exit (range 16) 170 | -11/Scrapyard | Entered Materials 318 | -10/Materials | Build established: Mutant 354 | -10/Materials | Core integrity fell below 50% 375 | -10/Materials | Lost 4 parts (1p1n2w) 634 | -10/Materials | Core integrity fell below 20% 640 | -10/Materials | Destroyed by G-34 Mercenary with Small Laser Last Messages --------------- 00518_ Violent ripples tear at the fabric of space around K-01 Serf. 00518_ K-01 Serf destroyed. 00518_ Engulfed by violent ripples tearing at the fabric of space. 00518_ Violent ripples tear at the fabric of space around O-16 Technician. 00528_ Acquired Lgt. Ion Engine. 00532_ Unstable Anomaly suddenly flashes brightly. 00580_ Acquired 37 matter. 00594_ Connecting with Terminal... 00594_ Current location identified: Materials 00594_ ALERT: Suspicious activity at Terminal M005. Dispatching Investigation squad. 00605_ Connecting with Terminal... >>Enumerate(Investigations) Retrieving latest reported positions... Found 1 active investigation squad. Downloaded coordinate data. 00605_ ALERT: Suspicious activity at Terminal M006. Dispatching Investigation squad. 00609_ Unstable Anomaly suddenly flashes brightly. 00635_ G-34 Mercenary IFF system glitched. Map ----- +----------------------------------------------------+ | ?????????????????????????????????????????????????? | | ???????????????????????????????? ????????????????? | | ??????????????????????????????? ""??????????????? | | ?????????????????????????? "??? "" ????????????? | | ?????????????????????????#""?? %"" ?????????????? | | ???????????????????????? " "" ""????????????? | | ????????????????????????"""" ""%""????????????? | | ???????????????????????? "" ""????????? ??? | | ???????????????????????? " """ ?????? ??? | | ??????????????????????? " ????? #?? | | ???????????????????????"""""""" """""""???? ### | | ??????????????????????? " ???? ? | | ?????????????????????##"? """; | | ????????????????????##T###"" % %/ """ """ "" | | ????????????????????# " ;;;; """"""""" "" | | ????????????????????# """" "%; ; """"" "" | | ????????????????????# """" "%; " % | | ????????????????????# """" !%; " | | ????????????????????# #gg # ; | | ????????????????????# "T" %%; # ; ^ # | | ????????????????????#####";;%! " !% !% # | | ????????????????????????##g; ; # " !%! ^! + | | ????????????????????????# ; ; # "" %!!"""""" # | | ????????????????????????##;;;;;#; ; ; " # | | ????????????????????????# ; ; #?## # | | ????????????????????????#@ % ;g ; #?# !!! | | ????????????????????????# ; ; #??# !%! | | ????????????????????????# ; ; ##?# "!%[ | | ????????????????????????#;;;;;;;;; ;; ### "=""# | | ???????????????????????? ;; ;;;;;! ; ## " " # | | ????????????? """""";;; " ## #%" # | | ????????????? " " ## # " # | | ????????????? """""";;; " ## #!# # | | ????????????? " """;;;;;;;;;; "### #%# | | ??????????????###### " ;;;;;;;""#"# #=#! | | ???????????????????##" ; # # | | ????????????????????#" ; """ # # | | ????????????????????## """ """ ; """ # # | | ?????????????????????# """ """ ; "Y" """ # | | ?????????????????????# """ """ # """ !% # | | ?????????????????????#? #########""" | | ??????????????????????? ?? #????# " | | ????????????????????????"""??"##????# """ | | ???????????????????????? ??? ??????# """ ## | | ??????????????????????? ???#??????# """ " #? | | ???????????????????????? ???????????# "" #? | | ????????????????????????????????????# "" ## | | ?????????????????????????????????####""""""" # | | ?????????????????????????????????# # | | ?????????????????????????????????# | +----------------------------------------------------+ Best States ------------- Heat Dissipation 25 Energy Generation 10 Energy Capacity 250 Matter Stores 300 Matter Capacity 300 Sight Range 16 Terrain Scan Density 10 Evasion (%) 50 Item Schematics ----------------- None Robot Schematics ------------------ None Fabricated ------------ Nothing Alien Tech Used ----------------- None Achievements -------------- None Challenges ------------ None Game ------ Seed AerolevSystemChainsword Manual? 0 Play Time 00:11:20 Cumulative 51.3 hours Start 2020.09.23 @ 21:13:08 End 2020.09.23 @ 21:20:36 Sessions 1 Manual Loads 0 Difficulty Rogue Special Mode Halloween2019/Abominations Game No. 58 Rogue 35 Adventurer 22 Explorer 1 Win Type - Total 1 Types 1/0/0/0/0/0/0/0/0 Lore% 25 Gallery% 38 Achievement% 31 Wizard Run 0 Options --------- ASCII 0 Keyboard 0 Movement Numpad Keybinds 0 Fullscreen 1 Font 14/SmallcapsGlow Map View 84x54 Tactical HUD 1 Map Filters NONE Filters NONE Steam 1 RUN: ad347b68-573b-4c48-9694-26a2546df6bc